fUSD/lending_fUSD_20250530
["ID","MTS","AMOUNT","RATE_DAILY","PERIOD"]
[363112819,1748585445809,-158.58266552,0.0002208,2]
[363112821,1748585445818,-500.0,0.0002209,2]
[363112823,1748585445827,-196.83237012,0.00022091,2]
[363112825,1748585445837,-190.01186892,0.00022098,2]
[363112827,1748585445847,-190.01186892,0.00022126,2]
[363112829,1748585445856,-190.01186892,0.00022154,2]
[363112831,1748585445865,-158.58266552,0.00022168,2]
[363112833,1748585445875,-527.84452092,0.00022173,2]
[363112835,1748585445884,-500.0,0.00022173,2]
[363112837,1748585445893,-546.95711903,0.00022173,2]
[363112839,1748585445903,-500.0,0.00022173,2]
[363112841,1748585445912,-500.0,0.00022173,2]
[363112844,1748585445922,-503.59646341,0.00022173,2]
[363112845,1748585445943,-500.0,0.00022173,2]
[363112847,1748585445953,-162.93272316,0.00022181,2]
[363112849,1748585445962,-190.01186892,0.00022182,2]
[363112851,1748585445971,-1199.75308712,0.00022182,2]
[363112853,1748585445981,-150.0,0.00022185,3]
[363112855,1748585445990,-150.0,0.00022185,3]
[363112857,1748585446000,-150.0,0.00022186,3]
[363112859,1748585446009,-150.0,0.00022186,3]
[363112861,1748585446018,-150.0,0.00022187,3]
[363112863,1748585446027,-150.0,0.00022187,3]
[363112865,1748585446036,-150.0,0.00022188,3]
[363112867,1748585446046,-150.0,0.00022188,3]
[363112869,1748585446055,-339.93808707,0.0002219,2]
[363112871,1748585446064,-172.58,0.0002219,2]
[363112873,1748585446073,-714.19,0.0002219,3]
[363112875,1748585446083,-500.0,0.0002219,2]
[363112877,1748585446092,-500.0,0.0002219,2]
[363112879,1748585446101,-500.0,0.0002219,2]
[363112881,1748585446113,-151.0,0.00022191,7]
[363112883,1748585446122,-151.0,0.00022191,7]
[363112885,1748585446131,-151.0,0.00022191,7]
[363112887,1748585446140,-244.877685,0.00022191,7]
[363112889,1748585446150,-151.0,0.00022191,7]
[363112891,1748585446159,-151.0,0.00022191,7]
[363112893,1748585446169,-151.0,0.00022191,7]
[363112894,1748585446180,-151.0,0.00022191,7]
[363112895,1748585446190,-151.0,0.00022191,7]
[363112896,1748585446200,-151.0,0.00022191,7]
[363112897,1748585446210,-151.0,0.00022191,7]
[363112898,1748585446219,-420.0,0.00022191,2]
[363112899,1748585446229,-420.0,0.00022191,2]
[363112900,1748585446238,-420.0,0.00022191,2]
[363112901,1748585446247,-420.0,0.00022191,2]
[363112902,1748585446255,-420.0,0.00022191,2]
[363112904,1748585446264,-420.0,0.00022191,2]
[363112906,1748585446274,-420.0,0.00022191,2]
[363112909,1748585446283,-420.0,0.00022191,2]
[363112911,1748585446292,-151.0,0.00022191,7]
[363112913,1748585446301,-420.0,0.00022191,2]
[363112915,1748585446310,-273.21920171,0.00022191,2]
[363112917,1748585446320,-420.0,0.00022191,2]
[363112919,1748585446329,-420.0,0.00022191,2]
[363112920,1748585446339,-420.0,0.00022191,2]
[363112922,1748585446348,-420.0,0.00022191,2]
[363112924,1748585446357,-420.0,0.00022191,2]
[363112926,1748585446366,-420.0,0.00022191,2]
[363112928,1748585446375,-591.68,0.00022191,2]
[363112930,1748585446385,-420.0,0.00022191,2]
[363112933,1748585446395,-420.0,0.00022191,2]
[363112934,1748585446404,-420.0,0.00022191,2]
[363112936,1748585446414,-420.0,0.00022191,2]
[363112939,1748585446424,-456.33,0.00022191,2]
[363112941,1748585446433,-420.0,0.00022191,2]
[363112942,1748585446442,-153.978837,0.00022191,7]
[363112944,1748585446452,-151.0,0.00022191,7]
[363112946,1748585446462,-500.55,0.00022191,2]
[363112948,1748585446471,-479.79,0.00022191,2]
[363112950,1748585446480,-420.0,0.00022191,2]
[363112952,1748585446490,-420.0,0.00022191,2]
[363112954,1748585446500,-154.243049,0.00022191,7]
[363112957,1748585446510,-151.0,0.00022191,7]
[363112958,1748585446519,-420.0,0.00022191,2]
[363112960,1748585446529,-420.0,0.00022191,2]
[363112962,1748585446538,-1127.13,0.00022191,2]
[363112964,1748585446548,-420.0,0.00022191,2]
[363112966,1748585446557,-151.0,0.00022191,7]
[363112968,1748585446566,-420.0,0.00022191,2]
[363112970,1748585446576,-715.66,0.00022191,2]
[363112972,1748585446585,-151.0,0.00022191,7]
[363112974,1748585446594,-788.02,0.00022191,2]
[363112976,1748585446605,-497.59,0.00022191,2]
[363112978,1748585446614,-565.52843042,0.00022191,2]
[363112980,1748585446623,-420.0,0.00022191,2]
[363112982,1748585446633,-451.92,0.00022191,2]
[363112984,1748585446643,-497.26,0.00022191,2]
[363112986,1748585446652,-420.0,0.00022191,2]
[363112988,1748585446661,-420.0,0.00022191,2]
[363112990,1748585446670,-586.05,0.00022191,2]
[363112992,1748585446681,-420.0,0.00022191,2]
[363112994,1748585446690,-440.5,0.00022191,2]
[363112996,1748585446699,-420.0,0.00022191,2]
[363112998,1748585446708,-914.24,0.00022191,2]
[363113000,1748585446718,-2685.46,0.00022191,2]
[363113002,1748585446727,-151.0,0.00022191,7]
[363113004,1748585446737,-889.5,0.00022191,2]
[363113006,1748585446746,-641.74,0.00022191,2]
[363113008,1748585446756,-420.0,0.00022191,2]
[363113010,1748585446765,-420.0,0.00022191,2]
[363113012,1748585446775,-1475.86,0.00022191,2]
[363113014,1748585446785,-437.27,0.00022191,2]
[363113016,1748585446795,-1464.75,0.00022191,2]
[363113018,1748585446804,-260.510858,0.00022191,7]
[363113020,1748585446814,-373.1458322,0.00022191,2]
[363113022,1748585446823,-420.0,0.00022191,2]
[363113024,1748585446833,-151.850064,0.00022191,7]
[363113026,1748585446843,-420.0,0.00022191,2]
[363113028,1748585446852,-190.915516,0.00022191,7]
[363113030,1748585446862,-1329.56,0.00022191,2]
[363113032,1748585446872,-153.225085,0.00022191,7]
[363113034,1748585446881,-151.0,0.00022191,7]
[363113036,1748585446891,-420.0,0.00022191,2]
[363113038,1748585446901,-420.0,0.00022191,2]
[363113040,1748585446910,-257.13696924,0.00022191,2]
[363113042,1748585446920,-1860.4,0.00022191,2]
[363113044,1748585446930,-151.0,0.00022191,7]
[363113046,1748585446940,-420.0,0.00022191,2]
[363113048,1748585446950,-151.0,0.00022191,7]
[363113050,1748585446960,-615.09,0.00022191,2]
[363113052,1748585446969,-1493.51,0.00022191,2]
[363113054,1748585446980,-420.0,0.00022191,2]
[363113056,1748585446989,-420.0,0.00022191,2]
[363113058,1748585446999,-420.0,0.00022191,2]
[363113060,1748585447008,-1040.37,0.00022191,2]
[363113062,1748585447018,-420.0,0.00022191,2]
[363113064,1748585447027,-756.12,0.00022191,2]
[363113066,1748585447036,-420.0,0.00022191,2]
[363113068,1748585447045,-435.52,0.00022191,2]
[363113070,1748585447055,-531.66,0.00022191,2]
[363113072,1748585447064,-594.07,0.00022191,2]
[363113074,1748585447074,-420.0,0.00022191,2]
[363113076,1748585447084,-420.0,0.00022191,2]
[363113078,1748585447094,-420.0,0.00022191,2]
[363113080,1748585447107,-466.83,0.00022191,2]
[363113082,1748585447117,-420.0,0.00022191,2]
[363113084,1748585447127,-420.0,0.00022191,2]
[363113086,1748585447136,-151.0,0.00022191,7]
[363113088,1748585447146,-579.97,0.00022191,2]
[363113090,1748585447156,-420.0,0.00022191,2]
[363113092,1748585447165,-420.0,0.00022191,2]
[363113094,1748585447176,-151.0,0.00022191,7]
[363113097,1748585447191,-247.152437,0.00022191,7]
[363113098,1748585447200,-682.8,0.00022191,2]
[363113101,1748585447210,-573.41,0.00022191,2]
[363113103,1748585447219,-703.76,0.00022191,2]
[363113104,1748585447229,-490.7,0.00022191,2]
[363113106,1748585447238,-420.0,0.00022191,2]
[363113109,1748585447248,-232.47252016,0.00022191,2]
[363113110,1748585447257,-552.71,0.00022191,2]
[363113112,1748585447268,-420.0,0.00022191,2]
[363113115,1748585447277,-2512.44,0.00022191,2]
[363113117,1748585447287,-420.0,0.00022191,2]
[363113118,1748585447297,-420.0,0.00022191,2]
[363113120,1748585447307,-420.0,0.00022191,2]
[363113123,1748585447317,-782.13,0.00022191,2]
[363113124,1748585447326,-975.73,0.00022191,2]
[363113126,1748585447336,-151.0,0.00022191,7]
[363113129,1748585447348,-420.0,0.00022191,2]
[363113130,1748585447358,-1707.06,0.00022191,2]
[363113132,1748585447367,-604.54,0.00022191,2]
[363113134,1748585447377,-431.65,0.00022191,2]
[363113137,1748585447387,-420.0,0.00022191,2]
[363113139,1748585447396,-459.2,0.00022191,2]
[363113141,1748585447406,-1235.03,0.00022191,2]
[363113142,1748585447416,-1494.41,0.00022191,2]
[363113145,1748585447426,-420.0,0.00022191,2]
[363113147,1748585447435,-905.29,0.00022191,2]
[363113149,1748585447445,-420.0,0.00022191,2]
[363113151,1748585447455,-982.66,0.00022191,2]
[363113153,1748585447466,-420.0,0.00022191,2]
[363113155,1748585447478,-420.0,0.00022191,2]
[363113157,1748585447488,-420.0,0.00022191,2]
[363113159,1748585447498,-878.64,0.00022191,2]
[363113161,1748585447508,-151.0,0.00022191,7]
[363113163,1748585447518,-443.74,0.00022191,2]
[363113165,1748585447528,-422.38,0.00022191,2]
[363113167,1748585447537,-420.0,0.00022191,2]
[363113169,1748585447547,-420.0,0.00022191,2]
[363113171,1748585447557,-829.57,0.00022191,2]
[363113173,1748585447567,-474.73,0.00022191,2]
[363113175,1748585447577,-484.33,0.00022191,2]
[363113177,1748585447586,-550.1,0.00022191,2]
[363113179,1748585447596,-420.0,0.00022191,2]
[363113180,1748585447606,-1724.25,0.00022191,2]
[363113183,1748585447616,-1383.58,0.00022191,2]
[363113185,1748585447626,-420.0,0.00022191,2]
[363113187,1748585447635,-420.0,0.00022191,2]
[363113189,1748585447645,-420.0,0.00022191,2]
[363113191,1748585447655,-300.0,0.00022191,2]
[363113193,1748585447665,-573.84,0.00022191,2]
[363113195,1748585447676,-780.91,0.00022191,2]
[363113197,1748585447686,-1149.96,0.00022191,2]
[363113199,1748585447696,-420.0,0.00022191,2]
[363113201,1748585447706,-151.0,0.00022191,7]
[363113203,1748585447716,-440.94,0.00022191,2]
[363113205,1748585447725,-513.27,0.00022191,2]
[363113207,1748585447735,-420.0,0.00022191,2]
[363113209,1748585447745,-654.12,0.00022191,2]
[363113211,1748585447754,-420.0,0.00022191,2]
[363113213,1748585447764,-420.0,0.00022191,2]
[363113215,1748585447774,-503.16,0.00022191,2]
[363113217,1748585447784,-420.0,0.00022191,2]
[363113219,1748585447794,-265.78,0.00022191,2]
[363113221,1748585447803,-585.02,0.00022191,2]
[363113223,1748585447813,-420.0,0.00022191,2]
[363113225,1748585447823,-420.0,0.00022191,2]
[363113227,1748585447832,-420.0,0.00022191,2]
[363113230,1748585447842,-420.0,0.00022191,2]
[363113231,1748585447852,-420.0,0.00022191,2]
[363113233,1748585447862,-420.0,0.00022191,2]
[363113234,1748585447871,-1051.49,0.00022191,2]
[363113235,1748585447880,-420.0,0.00022191,2]
[363113236,1748585447890,-1097.55,0.00022191,2]
[363113237,1748585447900,-468.96918263,0.00022191,2]
[363113238,1748585447910,-559.56,0.00022191,2]
[363113239,1748585447919,-534.58,0.00022191,2]
[363113240,1748585447930,-420.0,0.00022191,2]
[363113241,1748585447940,-420.0,0.00022191,2]
[363113242,1748585447949,-420.0,0.00022191,2]
[363113244,1748585447958,-864.91,0.00022191,2]
[363113246,1748585447968,-1114.38,0.00022191,2]
[363113248,1748585447978,-420.0,0.00022191,2]
[363113250,1748585447987,-420.0,0.00022191,2]
[363113252,1748585447997,-491.15,0.00022191,2]
[363113254,1748585448007,-995.3,0.00022191,2]
[363113256,1748585448016,-420.0,0.00022191,2]
[363113258,1748585448026,-420.0,0.00022191,2]
[363113260,1748585448036,-420.0,0.00022191,2]
[363113262,1748585448046,-420.0,0.00022191,2]
[363113264,1748585448055,-722.12,0.00022191,2]
[363113266,1748585448066,-700.86,0.00022191,2]
[363113268,1748585448075,-420.0,0.00022191,2]
[363113270,1748585448085,-420.0,0.00022191,2]
[363113272,1748585448095,-420.0,0.00022191,2]
[363113274,1748585448108,-304.685048,0.00022191,7]
[363113276,1748585448117,-420.0,0.00022191,2]
[363113278,1748585448127,-708.43,0.00022191,2]
[363113280,1748585448138,-420.0,0.00022191,2]
[363113282,1748585448149,-420.0,0.00022191,2]
[363113284,1748585448159,-1433.615506,0.00022191,2]
[363113286,1748585448169,-1240.477706,0.00022191,2]
[363113288,1748585448181,-662.01,0.00022191,2]
[363113290,1748585448191,-433.96,0.00022191,2]
[363113292,1748585448201,-304.685048,0.00022191,7]
[363113294,1748585448211,-956.32,0.00022191,2]
[363113296,1748585448220,-518.7772338,0.00022191,2]
[363113299,1748585448230,-1374.72,0.00022191,2]
[363113301,1748585448240,-151.0,0.00022191,7]
[363113303,1748585448250,-1209.59,0.00022191,2]
[363113305,1748585448261,-420.0,0.00022191,2]
[363113307,1748585448271,-1201.78,0.00022191,2]
[363113309,1748585448282,-1084.24,0.00022191,2]
[363113311,1748585448292,-420.0,0.00022191,2]
[363113313,1748585448302,-420.0,0.00022191,2]
[363113315,1748585448312,-632.01,0.00022191,2]
[363113317,1748585448323,-420.0,0.00022191,2]
[363113319,1748585448333,-151.0,0.00022191,7]
[363113321,1748585448343,-420.0,0.00022191,2]
[363113323,1748585448353,-151.0,0.00022191,7]
[363113325,1748585448363,-848.65,0.00022191,2]
[363113327,1748585448373,-650.52,0.00022191,2]
[363113330,1748585448383,-151.0,0.00022191,7]
[363113332,1748585448393,-420.0,0.00022191,2]
[363113334,1748585448403,-519.68,0.00022191,2]
[363113336,1748585448413,-151.0,0.00022191,7]
[363113338,1748585448423,-863.18,0.00022191,2]
[363113340,1748585448433,-478.3,0.00022191,2]
[363113342,1748585448443,-1269.43,0.00022191,2]
[363113344,1748585448454,-151.0,0.00022191,7]
[363113346,1748585448464,-1085.4,0.00022191,2]
[363113348,1748585448475,-578.64,0.00022191,2]
[363113350,1748585448485,-461.87,0.00022191,2]
[363113352,1748585448495,-420.0,0.00022191,2]
[363113354,1748585448507,-830.3,0.00022191,2]
[363113356,1748585448518,-151.0,0.00022191,7]
[363113358,1748585448529,-420.0,0.00022191,2]
[363113360,1748585448539,-420.0,0.00022191,2]
[363113362,1748585448550,-1045.34,0.00022191,2]
[363113364,1748585448561,-1974.4,0.00022191,2]
[363113366,1748585448572,-420.0,0.00022191,2]
[363113368,1748585448583,-420.0,0.00022191,2]
[363113370,1748585448594,-739.59,0.00022191,2]
[363113372,1748585448606,-901.66,0.00022191,2]
[363113374,1748585448617,-601.64,0.00022191,2]
[363113376,1748585448629,-420.0,0.00022191,2]
[363113379,1748585448640,-1239.65,0.00022191,2]
[363113380,1748585448652,-420.0,0.00022191,2]
[363113383,1748585448663,-582.49,0.00022191,2]
[363113385,1748585448674,-548.38,0.00022191,2]
[363113387,1748585448686,-426.68,0.00022191,2]
[363113389,1748585448697,-420.0,0.00022191,2]
[363113391,1748585448707,-420.0,0.00022191,2]
[363113393,1748585448718,-1593.01,0.00022191,2]
[363113395,1748585448729,-443.34,0.00022191,2]
[363113397,1748585448739,-420.0,0.00022191,2]
[363113399,1748585448749,-420.0,0.00022191,2]
[363113401,1748585448759,-560.31,0.00022191,2]
[363113403,1748585448770,-420.0,0.00022191,2]
[363113405,1748585448780,-151.0,0.00022191,7]
[363113407,1748585448790,-420.0,0.00022191,2]
[363113409,1748585448800,-420.0,0.00022191,2]
[363113411,1748585448810,-527.08,0.00022191,2]
[363113413,1748585448821,-1095.2,0.00022191,2]
[363113415,1748585448831,-151.0,0.00022191,7]
[363113417,1748585448841,-441.5,0.00022191,2]
[363113419,1748585448852,-528.62,0.00022191,2]
[363113421,1748585448863,-462.77,0.00022191,2]
[363113424,1748585448875,-420.0,0.00022191,2]
[363113426,1748585448885,-1069.4,0.00022191,2]
[363113428,1748585448895,-420.0,0.00022191,2]
[363113430,1748585448906,-543.51,0.00022191,2]
[363113432,1748585448916,-151.0,0.00022191,7]
[363113434,1748585448926,-286.752314,0.00022191,7]
[363113436,1748585448938,-858.37,0.00022191,2]
[363113438,1748585448947,-817.7,0.00022191,2]
[363113440,1748585448957,-420.0,0.00022191,2]
[363113442,1748585448968,-320.63245687,0.00022191,2]
[363113444,1748585448979,-706.88,0.00022191,2]
[363113446,1748585448990,-420.0,0.00022191,2]
[363113448,1748585448999,-153.35827,0.00022191,7]
[363113450,1748585449009,-420.0,0.00022191,2]
[363113452,1748585449019,-420.0,0.00022191,2]
[363113454,1748585449029,-589.89,0.00022191,2]
[363113456,1748585449038,-1290.91,0.00022191,2]
[363113458,1748585449048,-309.34694122,0.00022191,2]
[363113460,1748585449057,-420.0,0.00022191,2]
[363113462,1748585449066,-420.0,0.00022191,2]
[363113464,1748585449077,-420.0,0.00022191,2]
[363113466,1748585449087,-1117.6,0.00022191,2]
[363113469,1748585449097,-1231.15,0.00022191,2]
[363113471,1748585449107,-432.65,0.00022191,2]
[363113473,1748585449119,-465.1,0.00022191,2]
[363113475,1748585449129,-420.0,0.00022191,2]
[363113477,1748585449139,-384.82854578,0.00022191,2]
[363113479,1748585449149,-482.49,0.00022191,2]
[363113481,1748585449160,-420.0,0.00022191,2]
[363113483,1748585449170,-420.0,0.00022191,2]
[363113485,1748585449180,-2277.01,0.00022191,2]
[363113487,1748585449192,-420.0,0.00022191,2]
[363113489,1748585449203,-420.0,0.00022191,2]
[363113491,1748585449213,-654.66,0.00022191,2]
[363113493,1748585449223,-420.0,0.00022191,2]
[363113495,1748585449233,-525.41,0.00022191,2]
[363113497,1748585449243,-420.0,0.00022191,2]
[363113499,1748585449252,-420.0,0.00022191,2]
[363113502,1748585449262,-656.79,0.00022191,2]
[363113504,1748585449272,-420.0,0.00022191,2]
[363113506,1748585449282,-420.0,0.00022191,2]
[363113508,1748585449292,-545.95,0.00022191,2]
[363113510,1748585449302,-420.0,0.00022191,2]
[363113511,1748585449311,-420.0,0.00022191,2]
[363113514,1748585449321,-919.14,0.00022191,2]
[363113516,1748585449330,-646.99,0.00022191,2]
[363113517,1748585449340,-151.0,0.00022191,7]
[363113520,1748585449350,-476.14,0.00022191,2]
[363113522,1748585449360,-590.09,0.00022191,2]
[363113523,1748585449369,-1906.69,0.00022191,2]
[363113524,1748585449379,-151.0,0.00022191,7]
[363113525,1748585449389,-151.0,0.00022191,7]
[363113526,1748585449399,-573.08,0.00022191,2]
[363113527,1748585449409,-320.94,0.00022191,2]
[363113529,1748585449419,-444.62,0.00022191,2]
[363113531,1748585449430,-420.0,0.00022191,2]
[363113533,1748585449440,-420.0,0.00022191,2]
[363113535,1748585449451,-420.0,0.00022191,2]
[363113537,1748585449460,-1002.28,0.00022191,2]
[363113539,1748585449470,-467.72,0.00022191,2]
[363113541,1748585449480,-1371.2,0.00022191,2]
[363113543,1748585449491,-420.0,0.00022191,2]
[363113545,1748585449503,-420.0,0.00022191,2]
[363113546,1748585449513,-420.0,0.00022191,2]
[363113547,1748585449523,-510.53,0.00022191,2]
[363113548,1748585449532,-420.0,0.00022191,2]
[363113549,1748585449542,-420.0,0.00022191,2]
[363113550,1748585449552,-1015.37,0.00022191,2]
[363113551,1748585449562,-151.0,0.00022191,7]
[363113552,1748585449572,-420.0,0.00022191,2]
[363113553,1748585449582,-898.39,0.00022191,2]
[363113554,1748585449592,-420.0,0.00022191,2]
[363113556,1748585449603,-462.5,0.00022191,2]
[363113558,1748585449613,-1170.22,0.00022191,2]
[363113560,1748585449623,-511.46,0.00022191,2]
[363113562,1748585449634,-1243.86,0.00022191,2]
[363113564,1748585449644,-1205.89,0.00022191,2]
[363113566,1748585449654,-1955.820956,0.00022191,7]
[363113568,1748585449664,-444.4,0.00022191,2]
[363113593,1748585449891,-420.0,0.00022191,2]
[363113595,1748585449901,-499.86,0.00022191,2]
[363113597,1748585449911,-914.87,0.00022191,2]
[363113599,1748585449920,-420.0,0.00022191,2]
[363113601,1748585449930,-420.0,0.00022191,2]
[363113603,1748585449940,-1089.33,0.00022191,2]
[363113605,1748585449949,-151.0,0.00022191,7]
[363113607,1748585449959,-1367.86,0.00022191,2]
[363113609,1748585449968,-470.4,0.00022191,2]
[363113611,1748585449978,-151.0,0.00022191,7]
[363113613,1748585449988,-420.0,0.00022191,2]
[363113615,1748585449997,-420.0,0.00022191,2]
[363113617,1748585450007,-151.0,0.00022191,7]
[363113619,1748585450016,-616.1,0.00022191,2]
[363113621,1748585450026,-724.22,0.00022191,2]
[363113623,1748585450035,-420.0,0.00022191,2]
[363113625,1748585450044,-1811.51,0.00022191,2]
[363113627,1748585450054,-361.68224759,0.00022191,2]
[363113629,1748585450063,-420.0,0.00022191,2]
[363113631,1748585450073,-420.0,0.00022191,2]
[363113633,1748585450082,-420.0,0.00022191,2]
[363113635,1748585450092,-420.0,0.00022191,2]
[363113637,1748585450101,-420.0,0.00022191,2]
[363113639,1748585450114,-421.07,0.00022191,2]
[363113641,1748585450124,-610.98,0.00022191,2]
[363113643,1748585450133,-456.98,0.00022191,2]
[363113645,1748585450143,-420.0,0.00022191,2]
[363113647,1748585450152,-420.0,0.00022191,2]
[363113649,1748585450162,-420.0,0.00022191,2]
[363113651,1748585450171,-648.47,0.00022191,2]
[363113653,1748585450183,-525.2,0.00022191,2]
[363113655,1748585450193,-564.71,0.00022191,2]
[363113657,1748585450202,-420.0,0.00022191,2]
[363113659,1748585450211,-426.19,0.00022191,2]
[363113661,1748585450221,-420.0,0.00022191,2]
[363113663,1748585450231,-420.0,0.00022191,2]
[363113665,1748585450241,-420.0,0.00022191,2]
[363113667,1748585450250,-963.68,0.00022191,2]
[363113669,1748585450260,-3160.82,0.00022191,2]
[363113671,1748585450270,-962.35,0.00022191,2]
[363113673,1748585450280,-591.9,0.00022191,2]
[363113675,1748585450290,-420.0,0.00022191,2]
[363113677,1748585450300,-420.0,0.00022191,2]
[363113679,1748585450309,-961.44,0.00022191,2]
[363113681,1748585450319,-422.03,0.00022191,2]
[363113683,1748585450329,-420.0,0.00022191,2]
[363113685,1748585450338,-9634.79,0.00022191,2]
[363113687,1748585450348,-1400.42,0.00022191,2]
[363113689,1748585450357,-1270.09,0.00022191,2]
[363113691,1748585450367,-468.35,0.00022191,2]
[363113693,1748585450377,-474.17,0.00022191,2]
[363113696,1748585450387,-586.15,0.00022191,2]
[363113697,1748585450397,-155.221073,0.00022191,7]
[363113699,1748585450406,-5311.4,0.00022191,2]
[363113701,1748585450416,-1698.07,0.00022191,2]
[363113703,1748585450425,-420.0,0.00022191,2]
[363113706,1748585450437,-151.0,0.00022191,7]
[363113707,1748585450446,-151.0,0.00022191,7]
[363113709,1748585450456,-519.98,0.00022191,2]
[363113711,1748585450465,-2669.29,0.00022191,2]
[363113713,1748585450475,-1000.0,0.00022191,2]
[363113715,1748585450484,-420.0,0.00022191,2]
[363113718,1748585450494,-716.1,0.00022191,2]
[363113720,1748585450504,-1118.13,0.00022191,2]
[363113722,1748585450514,-420.0,0.00022191,2]
[363113724,1748585450524,-151.0,0.00022191,7]
[363113726,1748585450534,-949.01,0.00022191,2]
[363113728,1748585450544,-1647.18,0.00022191,2]
[363113730,1748585450554,-1016.54,0.00022191,2]
[363113732,1748585450564,-151.0,0.00022191,7]
[363113734,1748585450574,-420.0,0.00022191,2]
[363113736,1748585450583,-1219.63,0.00022191,2]
[363113738,1748585450592,-256.8506503,0.00022191,2]
[363113740,1748585450602,-420.0,0.00022191,2]
[363113742,1748585450612,-590.6,0.00022191,2]
[363113744,1748585450622,-2648.9,0.00022191,2]
[363113746,1748585450631,-1357.31,0.00022191,2]
[363113748,1748585450641,-1425.78,0.00022191,2]
[363113750,1748585450650,-622.28,0.00022191,2]
[363113752,1748585450660,-420.0,0.00022191,2]
[363113754,1748585450669,-675.02,0.00022191,2]
[363113756,1748585450680,-5764.35,0.00022191,2]
[363113758,1748585450691,-130590.73,0.00022191,2]
[363113760,1748585450700,-1530.54,0.00022191,2]
[363113762,1748585450710,-472.87,0.00022191,2]
[363113764,1748585450719,-420.0,0.00022191,2]
[363113766,1748585450729,-420.0,0.00022191,2]
[363113768,1748585450738,-574.34,0.00022191,2]
[363113770,1748585450749,-1073.09,0.00022191,2]
[363113772,1748585450758,-1165.9,0.00022191,2]
[363113774,1748585450768,-788.5,0.00022191,2]
[363113776,1748585450779,-971.88,0.00022191,2]
[363113778,1748585450789,-860.64,0.00022191,2]
[363113780,1748585450799,-7670.16,0.00022191,2]
[363113782,1748585450808,-420.0,0.00022191,2]
[363113784,1748585450818,-2460.1,0.00022191,2]
[363113786,1748585450828,-527.22,0.00022191,2]
[363113788,1748585450838,-151.0,0.00022191,7]
[363113790,1748585450848,-953.29,0.00022191,2]
[363113792,1748585450859,-514.55,0.00022191,2]
[363113794,1748585450869,-713.17,0.00022191,2]
[363113796,1748585450879,-1566.47,0.00022191,2]
[363113798,1748585450889,-151.0,0.00022191,7]
[363113800,1748585450900,-420.0,0.00022191,2]
[363113802,1748585450910,-677.87,0.00022191,2]
[363113804,1748585450919,-2059.14,0.00022191,2]
[363113806,1748585450929,-1272.87,0.00022191,2]
[363113808,1748585450940,-740.94,0.00022191,2]
[363113811,1748585450949,-420.0,0.00022191,2]
[363113812,1748585450959,-1860.81,0.00022191,2]
[363113813,1748585450969,-1023.42,0.00022191,2]
[363113814,1748585450979,-570.34,0.00022191,2]